bitfinex/quotes_SOLUSD_20250625
["timestamp","ask_amount","ask_price","bid_price","bid_amount"]
[1750809602827,7.3819183,146.03,145.93,239.1199]
[1750809603020,5.12425897,146.02,145.93,239.1199]
[1750809603223,5.12425897,146.01,145.93,239.1199]
[1750809603408,7.3819183,146.03,145.93,239.1199]
[1750809603601,5.12381388,146.02,145.93,239.1199]
[1750809603805,5.12381388,146.01,145.94,7.9291]
[1750809604005,5.1235538,146.02,145.95,1.5029]
[1750809604211,7.3819183,146.03,145.95,1.5029]
[1750809604428,5.12287569,146.02,145.95,90.2029]
[1750809604627,7.3819183,146.03,145.95,90.2029]
[1750809604931,5.12283253,146.02,145.95,90.8877925]
[1750809605124,7.3819183,146.03,145.95,90.2029]
[1750809605330,11.0830832,146.02,145.95,90.2029]
[1750809605628,5.1230832,146.01,145.95,1.5029]
[1750809605801,18.64964886,145.99,145.91,5.10691991]
[1750809606005,5.12345219,145.98,145.91,5.10691991]
[1750809606228,18.64964886,145.99,145.91,5.10691991]
[1750809606526,5.12394327,145.98,145.91,5.10691991]
[1750809606715,5.12418152,145.97,145.91,5.10691991]
[1750809606914,18.64964886,145.99,145.91,5.10691991]
[1750809607114,5.124211,145.98,145.91,5.10691991]
[1750809607316,5.124211,145.97,145.91,5.10691991]
[1750809607511,18.64964886,145.99,145.91,5.10691991]
[1750809607718,5.12413382,145.98,145.91,5.10691991]
[1750809608029,5.12413382,145.97,145.92,6.85307017]
[1750809608329,0.68505299,145.98,145.92,6.85307017]
[1750809608515,5.12375091,145.97,145.92,6.85307017]
[1750809608831,0.68505299,145.98,145.92,6.85307017]
[1750809609032,5.12374444,145.97,145.92,6.85307017]
[1750809609227,19.33463637,145.99,145.92,6.85307017]
[1750809609433,5.12375152,145.98,145.92,6.85307017]
[1750809609628,0.68491463,146.01,145.92,6.85307017]
[1750809609828,5.1229633,146.0,145.92,6.85307017]
[1750809610028,5.1229633,145.99,145.92,6.85307017]
[1750809610212,5.96,146.0,145.92,6.85307017]
[1750809610419,5.96,146.0,145.93,6.3389]
[1750809610833,5.96,146.0,145.94,6.85213101]
[1750809611029,0.68485138,146.02,145.94,6.85213101]
[1750809611343,11.08240401,146.01,145.94,6.85213101]
[1750809611525,5.12240401,146.0,145.94,6.85213101]
[1750809611724,5.96,146.01,145.94,6.85213101]
[1750809611921,5.12280237,146.0,145.94,6.85213101]
[1750809612122,5.12280237,145.99,145.94,23.98245854]
[1750809612332,5.96,146.01,145.94,112.68245854]
[1750809612537,5.96,146.01,145.95,1.6114]
[1750809612840,6.64488901,146.01,145.95,1.6114]
[1750809613242,5.12240481,146.0,145.95,1.6114]
[1750809613439,18.64964886,146.0,145.95,1.6114]
[1750809613637,5.12298499,145.99,145.95,1.6114]
[1750809613828,5.12298499,145.98,145.95,1.6114]
[1750809614136,0.68497842,145.99,145.95,1.6114]
[1750809614335,5.12322808,145.98,145.93,13.19140432]
[1750809614544,5.12316893,145.97,145.93,13.19140432]
[1750809614727,0.68497842,145.99,145.93,13.19140432]
[1750809614929,5.12314576,145.98,145.93,13.19140432]
[1750809615132,47.29459429,146.0,145.93,13.19140432]
[1750809615340,5.12278443,145.99,145.93,13.19140432]
[1750809615537,5.12278443,145.98,145.93,13.19140432]
[1750809615749,47.29459429,146.0,145.93,13.19140432]
[1750809615948,5.12271055,145.99,145.93,13.19140432]
[1750809616244,18.64964886,146.02,145.94,1.6554]
[1750809616435,11.08207675,146.01,145.94,1.6554]
[1750809616743,5.96,146.01,145.94,1.6554]
[1750809618352,5.96,146.01,145.95,23.98081533]
[1750809618955,13.3419183,146.03,145.95,23.98081533]
[1750809622464,13.3419183,146.03,145.95,261.58081533]
[1750809623673,14.02670972,146.03,145.95,261.58081533]
[1750809623843,5.12099632,146.02,145.95,261.58081533]
[1750809624047,5.12099632,146.01,145.95,261.58081533]
[1750809624245,14.02670972,146.03,145.95,261.58081533]
[1750809624445,5.12174426,146.02,145.95,261.58081533]
[1750809624645,14.02670972,146.03,145.95,261.58081533]
[1750809624844,5.12159143,146.02,145.95,261.58081533]
[1750809625073,14.02670972,146.03,145.95,261.58081533]
[1750809625293,5.12159103,146.02,145.95,261.58081533]
[1750809625578,13.3419183,146.03,145.95,261.58081533]
[1750809625781,5.12149719,146.02,145.95,261.58081533]
[1750809625976,14.02671036,146.03,145.95,261.58081533]
[1750809626152,13.3419183,146.03,145.95,261.58081533]
[1750809626488,5.12116277,146.02,145.95,261.58081533]
[1750809626672,14.02672328,146.03,145.95,261.58081533]
[1750809626859,5.12122022,146.02,145.95,261.58081533]
[1750809627188,14.02672328,146.03,145.95,261.58081533]
[1750809627364,5.12116848,146.02,145.95,261.58081533]
[1750809627689,14.02672328,146.03,145.95,261.58081533]
[1750809628482,5.12111116,146.02,145.95,261.58081533]
[1750809628681,14.02672328,146.03,145.95,261.58081533]
[1750809628858,13.3419183,146.03,145.96,8.0348]
[1750809629668,13.3419183,146.03,145.97,6.85072275]
[1750809630076,13.3419183,146.03,145.97,23.97752962]
[1750809632986,14.02670926,146.03,145.97,6.85072275]
[1750809633175,5.12025124,146.02,145.96,14.88584857]
[1750809633383,14.02670926,146.03,145.96,14.88584857]
[1750809633594,5.12048006,146.02,145.96,14.88584857]
[1750809633891,14.02670926,146.03,145.96,14.88584857]
[1750809634099,5.12047967,146.02,145.96,103.58584857]
[1750809634304,5.12047967,146.01,145.96,96.7348]
[1750809634597,5.12115688,146.0,145.96,96.7348]
[1750809634804,18.64964886,146.02,145.96,96.7348]
[1750809634983,5.12115608,146.01,145.96,96.7348]
[1750809635188,5.12115608,146.0,145.96,96.7348]
[1750809635387,5.12115608,145.99,145.96,96.7348]
[1750809635581,18.64964886,146.02,145.96,96.7348]
[1750809635786,0.6849315,146.0,145.96,96.7348]
[1750809635990,5.12119585,145.99,145.96,96.7348]
[1750809636186,0.6849315,146.0,145.96,96.7348]
[1750809636376,5.1211105,145.99,145.96,96.7348]
[1750809636575,0.6849315,146.0,145.96,103.585894]
[1750809636796,0.68490621,146.01,145.96,103.585894]
[1750809637098,5.12042698,146.0,145.96,103.585894]
[1750809637295,0.68490621,146.01,145.96,103.585894]
[1750809637486,5.12039378,146.0,145.96,96.7348]
[1750809637682,0.68490621,146.01,145.96,96.7348]
[1750809637887,15.05389529,146.03,145.93,6.85237655]
[1750809637888,0.68497842,145.99,145.93,6.85237655]
[1750809638884,18.64964886,146.0,145.93,6.85237655]
[1750809639197,5.12055465,145.99,145.93,6.85237655]
[1750809639379,5.12055465,145.98,145.93,6.85237655]
[1750809639586,27.94,145.99,145.93,6.85237655]
[1750809639785,5.12006546,145.98,145.93,6.85237655]
[1750809639988,5.98,145.97,145.93,6.85237655]
[1750809642189,6.66508659,145.97,145.92,103.39915931]
[1750809642388,6.66508659,145.97,145.92,14.69915931]
[1750809642811,5.98,145.97,145.92,14.69915931]
[1750809643010,6.66508114,145.97,145.92,14.69915931]
[1750809644995,5.98,145.97,145.92,14.69915931]
[1750809645996,5.98,145.97,145.92,40.69915931]
[1750809646511,6.66508221,145.97,145.92,40.69915931]
[1750809646717,5.98,145.97,145.92,40.69915931]
[1750809647717,6.66507744,145.97,145.92,40.69915931]
[1750809647922,5.98,145.97,145.92,40.69915931]
[1750809648125,5.98,145.97,145.93,26.0]
[1750809649717,5.98,145.97,145.93,32.85231929]
[1750809651826,5.98,145.97,145.93,121.55231929]
[1750809659368,6.66503623,145.98,145.93,32.85231929]
[1750809660061,6.66503623,145.98,145.93,6.85231929]
[1750809660268,18.64964886,145.97,145.89,6.8544794]
[1750809660452,0.6852131,145.94,145.89,6.8544794]
[1750809660651,18.64964886,145.93,145.85,6.85635927]
[1750809660852,5.98,145.92,145.85,6.85635927]
[1750809661045,11.09601114,145.92,145.85,6.85635927]
[1750809661571,11.09601114,145.92,145.85,36.27003713]
[1750809661954,5.98,145.92,145.88,26.0]
[1750809662454,5.98,145.92,145.87,26.0]
[1750809663550,0.68513676,145.96,145.88,26.0]
[1750809663759,5.98,145.96,145.89,1.569]
[1750809664361,5.98,145.96,145.89,27.569]
[1750809664547,5.98,145.96,145.9,6.85400959]
[1750809665268,6.66512331,145.96,145.9,6.85400959]
[1750809667572,11.77380664,145.96,145.9,6.85400959]
[1750809668068,6.66512331,145.96,145.9,6.85400959]
[1750809669552,6.66512331,145.96,145.9,95.55400959]
[1750809671469,5.98,145.96,145.9,95.55400959]
[1750809671871,6.66511986,145.96,145.9,95.55400959]
[1750809672287,11.77380319,145.96,145.9,95.55400959]
[1750809673302,0.6852131,145.94,145.9,88.7]
[1750809675798,5.79389643,145.94,145.9,88.7]
[1750809676182,0.6852131,145.94,145.9,88.7]
[1750809676383,5.79389643,145.94,145.9,88.7]
[1750809677103,0.6852131,145.94,145.9,88.7]
[1750809677287,5.80246181,145.94,145.9,88.7]
[1750809679113,0.6852131,145.94,145.9,88.7]
[1750809679901,0.6852131,145.94,145.9,95.5539552]
[1750809680101,5.8041458,145.94,145.9,95.5539552]
[1750809680607,0.6852131,145.94,145.9,95.5539552]
[1750809680788,19.33483278,145.95,145.9,95.5539552]
[1750809683791,5.12059576,145.94,145.9,88.7]
[1750809684003,19.33483278,145.95,145.9,88.7]
[1750809684198,5.12055981,145.94,145.9,88.7]
[1750809684506,19.33483278,145.95,145.9,88.7]
[1750809684686,5.12065344,145.94,145.9,88.7]
[1750809684886,19.33483278,145.95,145.9,88.7]
[1750809685089,5.12064658,145.94,145.9,95.55392879]
[1750809685287,19.33483278,145.95,145.9,95.55392879]
[1750809685503,5.12075849,145.94,145.9,95.55392879]
[1750809685702,19.33483278,145.95,145.9,88.7]
[1750809685904,5.12075772,145.94,145.89,88.7]
[1750809686124,5.12075772,145.93,145.89,88.7]
[1750809686312,19.33483278,145.95,145.89,88.7]
[1750809686505,5.12089658,145.94,145.89,88.7]
[1750809686812,5.12089658,145.93,145.89,88.7]
[1750809687009,19.33483278,145.95,145.89,88.7]
[1750809687210,0.68526005,145.93,145.89,88.7]
[1750809688835,0.6852131,145.94,145.89,88.7]
[1750809689018,5.12065125,145.93,145.89,88.7]
[1750809689325,0.6852131,145.94,145.89,88.7]
[1750809689528,5.12048619,145.93,145.89,88.7]
[1750809689727,0.6852131,145.94,145.89,95.55441776]
[1750809689911,5.12048619,145.93,145.89,88.7]
[1750809690111,0.6852131,145.94,145.89,88.7]
[1750809690328,5.1202394,145.93,145.89,88.7]
[1750809690529,0.6852131,145.94,145.89,88.7]
[1750809690728,5.12036947,145.93,145.89,88.7]
[1750809690908,0.6852131,145.94,145.89,88.7]
[1750809691110,5.80567307,145.93,145.89,88.7]
[1750809691330,0.68527419,145.93,145.89,95.55444287]
[1750809691527,5.80550235,145.94,145.89,95.55444287]
[1750809691711,0.68524362,145.94,145.89,95.55444287]
[1750809691909,19.3348347,145.95,145.89,95.55444287]
[1750809692324,6.66513088,145.96,145.89,95.55444287]
[1750809692530,5.1202108,145.95,145.89,95.55444287]
[1750809692708,6.66513088,145.96,145.89,95.55444287]
[1750809692908,5.1201395,145.95,145.89,95.55444287]
[1750809693112,6.66513088,145.96,145.89,95.55444287]
[1750809693410,5.12030681,145.95,145.89,95.55444287]
[1750809693611,6.66513088,145.96,145.89,95.55444287]
[1750809693812,5.12040038,145.95,145.9,26.0]
[1750809694014,11.08033487,145.95,145.9,27.6286]
[1750809694221,5.96,145.95,145.9,27.6286]
[1750809695135,5.96,145.95,145.91,6.85353985]
[1750809698539,5.96,145.95,145.9,34.48241724]
[1750809699130,5.96,145.95,145.9,123.18241724]
[1750809702136,5.96,145.95,145.9,140.31744122]
[1750809702335,5.96,145.95,145.9,123.18241724]
[1750809702736,23.77541812,145.94,145.87,6.8554192]
[1750809702931,5.12576926,145.93,145.87,6.8554192]
[1750809703242,5.12641436,145.92,145.86,1.6004]
[1750809703443,5.1278872,145.91,145.86,1.6004]
[1750809703641,0.68540095,145.9,145.86,1.6004]
[1750809703846,0.68540095,145.9,145.83,6.85729959]
[1750809704226,5.96,145.89,145.83,6.85729959]
[1750809704631,5.96,145.89,145.84,26.0]
[1750809705453,0.68549492,145.88,145.82,8.4579663]
[1750809705761,2.39923223,145.88,145.82,1.6004]
[1750809706056,5.12803625,145.87,145.78,8.51815152]
[1750809706241,46.60964886,145.87,145.81,26.0]
[1750809706442,46.60964886,145.87,145.78,25.66728034]
[1750809706753,46.60964886,145.87,145.81,26.0]
[1750809706940,46.60964886,145.87,145.78,29.15606875]
[1750809707348,47.29523737,145.87,145.81,32.85809373]
[1750809707549,47.29523737,145.87,145.81,26.0]
[1750809708052,47.29523737,145.87,145.81,32.85813312]
[1750809708859,27.96,145.87,145.81,32.85813312]
[1750809709052,28.64554473,145.87,145.81,32.85813312]
[1750809709256,27.96,145.87,145.81,32.85813312]
[1750809710354,27.96,145.87,145.81,31.85813312]
[1750809712062,28.64554818,145.87,145.81,31.85813312]
[1750809713962,28.64554818,145.87,145.81,120.55813312]
[1750809716962,27.96,145.87,145.81,120.55813312]
[1750809717340,28.6455478,145.87,145.81,120.55813312]
[1750809722557,18.64964886,145.86,145.79,6.85911814]
[1750809723653,0.68563592,145.85,145.78,32.8595669]
[1750809724067,18.64964886,145.84,145.76,6.86059275]
[1750809724268,18.64964886,145.84,145.73,18.64964886]
[1750809724269,18.64964886,145.82,145.73,6.86200507]
[1750809724569,46.58964886,145.82,145.74,26.0]
[1750809724951,27.94,145.82,145.73,6.86200507]
[1750809725157,5.96,145.83,145.73,6.86200507]
[1750809725672,0.68582401,145.81,145.73,6.86200507]
[1750809725973,28.62582401,145.81,145.73,6.86200507]
[1750809726681,28.62582401,145.81,145.74,26.0]
[1750809727172,18.64964886,145.8,145.72,6.86247598]
[1750809727372,18.64964886,145.8,145.75,26.0]
[1750809728167,0.6859181,145.79,145.75,26.0]
[1750809728848,0.6859181,145.79,145.73,6.86177298]
[1750809729066,0.6859181,145.79,145.73,32.86177298]
[1750809729268,0.6859181,145.79,145.71,97.13212764]
[1750809729667,1.5165,145.78,145.71,95.56272764]
[1750809729861,5.98,145.77,145.71,88.7]
[1750809730374,0.68605927,145.76,145.71,88.7]
[1750809730587,5.98,145.77,145.71,95.56284572]
[1750809730778,5.98,145.77,145.74,26.0]
[1750809732277,5.98,145.77,145.75,6.86106346]
[1750809737383,5.98,145.77,145.74,32.86132997]
[1750809737581,5.98,145.77,145.74,121.56132997]
[1750809742899,5.98,145.77,145.74,88.7]
[1750809743078,5.98,145.77,145.72,26.0]
[1750809743079,6.66602017,145.77,145.72,26.0]
[1750809743273,6.66602017,145.77,145.72,32.86239695]
[1750809743596,46.60964886,145.76,145.66,3.40598317]
[1750809744099,46.60964886,145.76,145.67,26.0]
[1750809744294,46.60964886,145.76,145.68,26.0]
[1750809745001,0.68610634,145.75,145.66,6.86526139]
[1750809745176,0.68610634,145.75,145.68,26.0]
[1750809746200,0.68610634,145.75,145.69,26.0]
[1750809748014,2.4013722,145.75,145.69,26.0]
[1750809749405,2.4013722,145.75,145.69,114.7]
[1750809750622,18.64964886,145.74,145.69,88.7]
[1750809750982,18.64964886,145.72,145.66,88.7]
[1750809751207,34.02,145.71,145.66,88.7]
[1750809751513,18.64964886,145.7,145.61,10.30576433]
[1750809751719,34.02,145.71,145.64,26.0]
[1750809752086,34.02,145.71,145.61,99.00576433]
[1750809752420,0.68634179,145.7,145.64,26.0]
[1750809752715,34.70631075,145.71,145.64,26.0]
[1750809753830,34.02,145.71,145.65,6.86577411]
[1750809754524,34.02,145.71,145.68,26.0]
[1750809754901,5.98,145.71,145.68,26.0]
[1750809756137,5.98,145.71,145.69,6.86388907]
[1750809756322,34.06,145.75,145.69,6.86388907]
[1750809757205,34.06,145.75,145.69,24.02361176]
[1750809761337,34.06,145.75,145.69,112.72361176]
[1750809762042,5.98,145.75,145.69,112.72361176]
[1750809766538,6.66610693,145.75,145.69,95.56388907]
[1750809767832,6.66610693,145.75,145.69,88.7]
[1750809768058,6.66610693,145.75,145.69,95.56383006]
[1750809770274,11.77872843,145.75,145.69,95.56383006]
[1750809771789,11.77872843,145.75,145.69,6.86383006]
[1750809773282,11.77872843,145.75,145.68,32.86413746]
[1750809774352,11.78474447,145.75,145.68,32.86413746]
[1750809776870,5.98,145.75,145.69,8.0685]
[1750809778167,5.98,145.75,145.7,6.86341798]
[1750809781399,0.68605978,145.76,145.7,6.86341798]
[1750809782089,0.68605978,145.76,145.7,95.56341798]
[1750809782262,5.80491004,145.76,145.7,95.56341798]
[1750809783271,5.80491004,145.76,145.7,95.06341798]
[1750809783584,18.64964886,145.75,145.7,88.7]
[1750809783784,5.11885026,145.74,145.66,8.52029961]
[1750809783986,33.11885026,145.73,145.66,34.52029961]
[1750809784286,28.0,145.73,145.66,34.52029961]
[1750809784493,5.12826912,145.72,145.66,34.52029961]
[1750809784688,28.0,145.73,145.66,34.52029961]
[1750809784992,28.68624183,145.73,145.66,34.52029961]
[1750809785393,33.81546338,145.73,145.66,34.52029961]
[1750809785693,28.68624183,145.73,145.66,34.52029961]
[1750809785869,33.81546338,145.73,145.66,34.52029961]
[1750809786068,28.68624183,145.73,145.66,34.52029961]
[1750809786774,28.0,145.73,145.66,34.52029961]
[1750809788181,28.6862118,145.73,145.66,51.6835565]
[1750809789699,28.70616029,145.74,145.69,26.0]
[1750809789896,5.13379524,145.73,145.69,114.7]
[1750809790094,28.02,145.74,145.69,114.7]
[1750809790800,5.13369906,145.73,145.69,88.7]
[1750809790985,28.70617178,145.74,145.69,88.7]
[1750809791185,5.13377961,145.73,145.69,88.7]
[1750809791374,28.70617178,145.74,145.69,88.7]
[1750809791570,5.82006485,145.73,145.69,88.7]
[1750809791876,0.68620408,145.73,145.69,88.7]
[1750809793499,28.70617262,145.74,145.69,95.56382695]
[1750809793699,5.13382474,145.73,145.69,95.56382695]
[1750809793898,28.02,145.74,145.69,95.56382695]
[1750809800390,0.6861367,145.75,145.69,95.56382695]
[1750809800591,5.13856788,145.74,145.69,95.56382695]
[1750809800882,0.6861367,145.75,145.69,95.56382695]
[1750809801082,5.1385761,145.74,145.69,95.56382695]
[1750809801283,0.68605927,145.76,145.69,95.56382695]
[1750809801483,5.13872538,145.75,145.69,95.56382695]
[1750809801702,5.13872538,145.74,145.69,95.56382695]
[1750809801891,0.68605927,145.76,145.69,95.56382695]
[1750809802100,5.13877494,145.75,145.69,95.56382695]
[1750809802298,5.13877494,145.74,145.69,95.56382695]
[1750809802499,0.68605927,145.76,145.69,95.56382695]
[1750809802702,5.138353,145.75,145.69,95.56382695]
[1750809802901,0.68605927,145.76,145.69,95.56382695]
[1750809803081,5.13835221,145.75,145.69,95.56382695]
[1750809803288,0.68605927,145.76,145.69,95.56382695]
[1750809803487,5.13830403,145.75,145.7,26.0]
[1750809803688,34.74602435,145.77,145.71,1.6377]
[1750809803893,5.13810987,145.76,145.71,90.3377]
[1750809804090,5.13810987,145.75,145.71,90.3377]
[1750809804310,34.72602435,145.77,145.71,90.3377]
[1750809804489,5.13799346,145.76,145.71,90.3377]
[1750809804691,5.13799346,145.75,145.72,6.86247598]
[1750809805011,34.72602435,145.77,145.72,6.86247598]
[1750809805185,5.13763702,145.76,145.72,6.86247598]
[1750809805386,5.13763702,145.75,145.72,6.86247598]
[1750809805602,34.72602435,145.77,145.72,6.86247598]
[1750809805808,5.13722029,145.76,145.72,6.86247598]
[1750809806019,5.13722029,145.75,145.72,6.86247598]
[1750809806216,0.68606604,145.76,145.72,6.86247598]
[1750809806818,34.7260253,145.77,145.72,6.86247598]
[1750809807007,5.13684,145.76,145.72,6.86247598]
[1750809807203,34.7260253,145.77,145.72,6.86247598]
[1750809807413,5.13674703,145.76,145.72,6.86247598]
[1750809807631,34.7260253,145.77,145.72,6.86247598]
[1750809807931,5.13647546,145.76,145.72,6.86247598]
[1750809808131,6.04,145.77,145.72,6.86247598]
[1750809808344,5.13616823,145.76,145.72,6.86247598]
[1750809808514,6.04,145.77,145.72,95.56247598]
[1750809808720,5.13570261,145.76,145.72,95.56247598]
[1750809808925,6.04,145.77,145.72,95.56247598]
[1750809809231,5.13567349,145.76,145.72,95.56247598]
[1750809809428,6.04,145.77,145.72,95.56247598]
[1750809809735,5.13511887,145.76,145.72,95.56247598]
[1750809809923,6.04,145.77,145.72,95.56247598]
[1750809810112,5.13511848,145.76,145.72,95.56247598]
[1750809810414,6.72601351,145.77,145.72,95.56247598]
[1750809810613,5.13460211,145.76,145.72,95.56247598]
[1750809810821,6.72601351,145.77,145.72,95.56247598]
[1750809811020,5.13460171,145.76,145.72,95.56247598]
[1750809811222,6.72601351,145.77,145.72,95.56247598]
[1750809811537,5.13446666,145.76,145.72,95.56247598]
[1750809811742,6.72601351,145.77,145.72,95.56247598]
[1750809811941,5.13412371,145.76,145.72,95.56247598]
[1750809812116,6.04,145.77,145.72,95.56247598]
[1750809812321,5.13378426,145.76,145.72,88.7]
[1750809812514,5.13378426,145.75,145.72,88.7]
[1750809812817,34.7060163,145.77,145.72,88.7]
[1750809813020,5.13451328,145.76,145.72,88.7]
[1750809813219,5.13451328,145.75,145.72,88.7]
[1750809813441,34.7060163,145.77,145.72,88.7]
[1750809813643,5.13467137,145.76,145.72,88.7]
[1750809813844,5.13467137,145.75,145.72,88.7]
[1750809814028,0.6860899,145.76,145.72,88.7]
[1750809814221,5.13467177,145.75,145.72,88.7]
[1750809814422,0.6860899,145.76,145.72,88.7]
[1750809814623,5.13467441,145.75,145.72,88.7]
[1750809814823,0.6860899,145.76,145.72,88.7]
[1750809815023,5.13466619,145.75,145.72,88.7]
[1750809815339,0.6860899,145.76,145.72,88.7]
[1750809815526,5.13478764,145.75,145.72,88.7]
[1750809815823,0.6860899,145.76,145.72,88.7]
[1750809816022,5.82090679,145.75,145.72,88.7]
[1750809816237,0.68611093,145.75,145.72,88.7]
[1750809816743,0.68607856,145.76,145.72,88.7]
[1750809816936,5.13487356,145.75,145.72,88.7]
[1750809817137,0.68607856,145.76,145.72,88.7]
[1750809817436,5.13478809,145.75,145.72,88.7]
[1750809817621,0.68607856,145.76,145.72,88.7]
[1750809817821,5.13487265,145.75,145.72,88.7]
[1750809818034,0.68607856,145.76,145.72,88.7]
[1750809818238,5.13488087,145.75,145.72,88.7]
[1750809818414,0.68607856,145.76,145.72,88.7]
[1750809818619,5.1349942,145.75,145.72,88.7]
[1750809818847,0.68607856,145.76,145.72,88.7]
[1750809819043,5.13497775,145.75,145.72,88.7]
[1750809819344,0.68607856,145.76,145.72,88.7]
[1750809819547,5.8212169,145.75,145.72,88.7]
[1750809819740,0.6861089,145.75,145.72,88.7]
[1750809821564,0.68605927,145.76,145.72,88.7]
[1750809821742,5.13538361,145.75,145.72,88.7]
[1750809821942,0.68605927,145.76,145.72,88.7]
[1750809822238,5.13538361,145.75,145.72,88.7]
[1750809822453,0.68605927,145.76,145.72,88.7]
[1750809822655,5.8214799,145.75,145.72,88.7]
[1750809822833,0.68613666,145.75,145.72,88.7]
[1750809825046,0.68605927,145.76,145.72,88.7]
[1750809825250,5.13538384,145.75,145.72,88.7]
[1750809825551,0.68605927,145.76,145.72,88.7]
[1750809825757,5.1354773,145.75,145.72,88.7]
[1750809825959,0.68605927,145.76,145.72,88.7]
[1750809826164,5.13548514,145.75,145.72,88.7]
[1750809826368,5.13548514,145.74,145.72,88.7]
[1750809826565,0.68605927,145.76,145.72,88.7]
[1750809826874,5.13571405,145.75,145.72,88.7]
[1750809827078,5.13571405,145.74,145.72,88.7]
[1750809827261,0.68615025,145.75,145.72,88.7]
[1750809827570,5.13568393,145.74,145.72,88.7]
[1750809827782,0.68615025,145.75,145.72,88.7]
[1750809828283,0.68607223,145.76,145.72,88.7]
[1750809828583,0.68607223,145.76,145.72,95.56238273]
[1750809830380,0.68607223,145.76,145.72,88.7]
[1750809830774,5.13616688,145.75,145.72,88.7]
[1750809830977,0.68607223,145.76,145.72,88.7]
[1750809831169,5.13625361,145.75,145.72,88.7]
[1750809831371,0.68607223,145.76,145.72,88.7]
[1750809831571,5.82306155,145.75,145.72,88.7]
[1750809831771,0.68611355,145.75,145.72,88.7]
[1750809832792,0.68605927,145.76,145.72,88.7]
[1750809833089,5.1373154,145.75,145.72,88.7]
[1750809833384,0.68605927,145.76,145.72,88.7]
[1750809833595,5.13769541,145.75,145.72,88.7]
[1750809833789,0.68605927,145.76,145.72,88.7]
[1750809833983,5.82381609,145.75,145.72,88.7]
[1750809834164,0.68612108,145.75,145.72,88.7]
[1750809834690,5.13811825,145.74,145.72,88.7]
[1750809834990,0.68612108,145.75,145.72,88.7]
[1750809835282,5.13819677,145.74,145.72,88.7]
[1750809835487,0.68605927,145.76,145.72,88.7]
[1750809835690,5.13833729,145.75,145.72,88.7]
[1750809835984,5.13833729,145.74,145.72,88.7]
[1750809836190,5.13833729,145.74,145.68,17.15999249]
[1750809836191,5.138546,145.73,145.67,1.6413]
[1750809836365,5.138546,145.72,145.67,90.3413]
[1750809836570,27.98,145.73,145.67,90.3413]
[1750809836784,5.13867169,145.72,145.67,90.3413]
[1750809836982,27.98,145.73,145.67,90.3413]
[1750809837178,0.68629469,145.71,145.67,90.3413]
[1750809837697,0.68626914,145.72,145.67,97.20611318]
[1750809837879,5.13863291,145.71,145.67,97.20611318]
[1750809838075,28.66621834,145.73,145.67,97.20611318]
[1750809841471,27.98,145.73,145.67,97.20611318]
[1750809842178,0.68613499,145.75,145.67,97.20611318]
[1750809842381,5.13760806,145.74,145.67,97.20611318]
[1750809842577,0.68613499,145.75,145.7,26.0]
[1750809842779,5.13748912,145.74,145.7,121.5630504]
[1750809843003,6.72601665,145.77,145.71,7.8578]
[1750809843204,5.13685317,145.76,145.71,7.8578]
[1750809843395,6.72601665,145.77,145.71,7.8578]
[1750809843582,5.13675356,145.76,145.71,7.8578]
[1750809843784,6.72601665,145.77,145.71,7.8578]
[1750809844083,5.13648041,145.76,145.72,6.86247598]
[1750809844291,6.72601665,145.77,145.72,6.86247598]
[1750809844496,5.1363939,145.76,145.72,6.86247598]
[1750809844697,6.72601665,145.77,145.72,6.86247598]
[1750809844875,5.13626006,145.76,145.72,6.86247598]
[1750809845076,6.72601665,145.77,145.72,6.86247598]
[1750809845273,5.82232904,145.76,145.71,14.72074676]
[1750809845477,0.68606937,145.76,145.71,14.72074676]
[1750809845909,5.13646738,145.75,145.71,14.72074676]
[1750809846084,0.68606937,145.76,145.71,14.72074676]
[1750809846399,5.13646738,145.75,145.71,14.72074676]
[1750809846597,0.68606937,145.76,145.71,14.72074676]
[1750809846800,5.13645744,145.75,145.71,14.72074676]
[1750809846997,0.68606937,145.76,145.71,103.42074676]
[1750809847198,5.13645784,145.75,145.71,103.42074676]
[1750809847389,0.68606937,145.76,145.71,103.42074676]
[1750809847585,5.13645744,145.75,145.71,103.42074676]
[1750809847797,0.68606937,145.76,145.71,103.42074676]
[1750809847983,5.1364314,145.75,145.71,103.42074676]